fUSD/lending_fUSD_20260207
["ID","MTS","AMOUNT","RATE_DAILY","PERIOD"]
[404688945,1770458762612,1318.48505207,0.000356,120]
[404688946,1770458764324,768.42887957,0.000356,120]
[404688947,1770458778133,1000.0,0.00035616,120]
[404688948,1770458780206,1000.0,0.00035616,120]
[404688949,1770458781582,1000.0,0.00035616,120]
[404688950,1770458782679,1000.0,0.00035616,120]
[404688951,1770458783774,1000.0,0.00035616,120]
[404688952,1770458784991,1000.0,0.00035616,120]
[404688953,1770458785776,1000.0,0.00035616,120]
[404688954,1770458788995,610.81167899,0.000356,120]
[404688955,1770458796503,211.94,0.00035616,120]
[404688956,1770458818873,500.0,0.00035616,120]
[404688957,1770458820948,500.0,0.00035616,120]
[404688958,1770458822779,500.0,0.00035616,120]
[404688959,1770458824029,500.0,0.00035616,120]
[404688960,1770458824437,500.0,0.00035616,120]
[404688961,1770458824914,500.0,0.00035616,120]
[404688962,1770458825202,500.0,0.00035616,120]
[404688963,1770458847549,1307.96,0.00035616,120]
[404688964,1770458882558,3606.15562916,0.00035616,120]
[404688965,1770458934318,500.0,0.00035616,120]
[404688966,1770458960213,499.99999999,0.00035616,120]
[404688967,1770459031552,-1441.18,0.00013106,2]
[404688968,1770459031563,-1200.0,0.00014416,2]
[404688969,1770459031574,-1140.78551,0.00014416,2]
[404688970,1770459031586,-905.83080346,0.00014417,2]
[404688971,1770459031600,-200.0,0.00014824,2]
[404688972,1770459031610,-157.58,0.00015133,2]
[404688973,1770459031625,-4766.35,0.0001534,2]
[404688974,1770459031635,-411.0,0.0001538,2]
[404688975,1770459031647,-398.2,0.00015435,2]
[404688976,1770459031658,-150.0,0.00015538,2]
[404688977,1770459031670,-153.52612086,0.00015556,2]
[404688978,1770459031681,-193.1584119,0.00015556,2]
[404688979,1770459031693,-774.6593398,0.00015556,2]
[404688980,1770459031703,-3531.22352933,0.00015556,2]
[404688981,1770459031716,-359.80053367,0.00015556,2]
[404688982,1770459031727,-237.30690274,0.00015562,2]
[404688983,1770459031738,-423.43304553,0.00015562,2]
[404688984,1770459031751,-454.19104179,0.00015562,2]
[404688985,1770459031771,-6205.94868267,0.00015562,2]
[404688986,1770459031782,-151.0,0.00015562,2]
[404688987,1770459031792,-3938.30516466,0.00015564,2]
[404688988,1770459031807,-500.0,0.00015564,2]
[404688989,1770459031817,-221.91142458,0.00015564,2]
[404688990,1770459031828,-564.03158935,0.00015564,2]
[404688991,1770459031839,-27463.60961098,0.00015565,2]
[404688992,1770459031852,-715.52,0.00015565,2]
[404688993,1770459031866,-3968.95087844,0.00015565,2]
[404689001,1770459037622,-1849003.94676792,0.00015565,2]
[404689002,1770459037634,-68415.5,0.00015565,2]
[404689006,1770459039763,-151.0,0.00015562,2]
[404689007,1770459039774,-939.0512326,0.00015565,2]
[404689008,1770459039786,-2279.10000001,0.00015565,2]
[404689009,1770459039869,-231041.13516906,0.00015565,2]
[404689010,1770459039881,-1147.04140008,0.00015565,2]
[404689011,1770459039894,-841.32405588,0.00015565,2]
[404689012,1770459043260,-1226.99980761,0.00015565,2]
[404689015,1770459043271,-699.25908594,0.00015565,2]
[404689016,1770459044144,-682.23657922,0.00015565,2]
[404689017,1770459044198,-2487.29293156,0.00015565,2]
[404689019,1770459045525,-1500.0,0.00015565,2]
[404689037,1770459054840,236.56711895,0.000356,120]
[404689038,1770459063154,271.92071651,0.000356,120]
[404689039,1770459064715,217.32414765,0.000356,120]
[404689040,1770459070306,237.11452841,0.000356,120]
[404689041,1770459070335,216.52597833,0.000356,120]
[404689042,1770459076567,1054.78804165,0.000356,120]
[404689043,1770459079775,614.74310366,0.000356,120]
[404689044,1770459085545,200.0,0.00035,120]
[404689046,1770459102819,488.64934319,0.000356,120]
[404689047,1770459176412,500.0,0.00035,120]
[404689048,1770459196241,430.76,0.000356,120]
[404689050,1770459369688,189.25369516,0.000356,120]
[404689051,1770459377262,217.53657321,0.000356,120]
[404689052,1770459379745,173.85931812,0.000356,120]
[404689053,1770459384618,189.69162273,0.000356,120]
[404689054,1770459388675,173.22078266,0.000356,120]
[404689055,1770459390671,843.83043332,0.000356,120]
[404689056,1770459393691,491.79448293,0.000356,120]
[404689057,1770459416754,390.91947455,0.000356,120]
[404689058,1770459684392,189.25369516,0.000356,120]
[404689059,1770459691855,174.02925857,0.000356,120]
[404689060,1770459693485,173.85931812,0.000356,120]
[404689061,1770459698441,189.69162273,0.000356,120]
[404689062,1770459704479,675.06434666,0.000356,120]
[404689063,1770459706901,173.22078266,0.000356,120]
[404689064,1770459707935,393.43558634,0.000356,120]
[404689065,1770459730640,312.73557964,0.000356,120]
[404689066,1770459799841,3425.24014676,0.0002,30]
[404689067,1770459915028,150.0,0.00035,120]
[404689071,1770459998285,189.25369516,0.000356,120]
[404689072,1770460005731,174.02925856,0.000356,120]
[404689073,1770460007374,173.85931813,0.000356,120]
[404689074,1770460012303,189.69162273,0.000356,120]
[404689075,1770460018466,540.05147733,0.000356,120]
[404689076,1770460020361,173.22078266,0.000356,120]
[404689077,1770460022253,314.74846907,0.000356,120]
[404689078,1770460044483,250.18846371,0.000356,120]
[404689085,1770460231570,-272.0,0.00014748,2]
[404689088,1770460231582,-156.83006423,0.00014748,2]
[404689090,1770460231624,-420.11993577,0.00014748,2]
[404689091,1770460231639,-500.0,0.00015154,2]
[404689092,1770460231650,-200.0,0.00015252,2]
[404689093,1770460231663,-664.96,0.00015255,2]
[404689094,1770460231679,-500.0,0.00015281,2]
[404689095,1770460231691,-500.0,0.00015363,2]
[404689096,1770460231702,-1554.97000621,0.00015456,2]
[404689097,1770460231718,-3242.5200525,0.00015456,2]
[404689098,1770460231729,-1200.0,0.00015462,2]
[404689099,1770460231740,-276.0,0.00015462,2]
[404689100,1770460231752,-516.43955986,0.00015463,2]
[404689101,1770460231763,-696.84703475,0.00015546,2]
[404689102,1770460231774,-153.58,0.00015546,2]
[404689103,1770460231785,-151.0,0.00015553,2]
[404689104,1770460231795,-300.0,0.00015554,2]
[404689105,1770460231806,-197.28628629,0.00015555,2]
[404689106,1770460231818,-222.04741039,0.00015555,2]
[404689107,1770460231831,-500.0,0.00015555,2]
[404689108,1770460231844,-500.0,0.00015555,2]
[404689109,1770460231855,-256.41713721,0.00015555,2]
[404689110,1770460231868,-243.58286279,0.00015555,2]
[404689111,1770460231879,-69.11713721,0.00015555,2]
[404689112,1770460231891,-430.88286279,0.00015555,2]
[404689113,1770460231902,-500.0,0.00015555,2]
[404689114,1770460231912,-500.0,0.00015555,2]
[404689115,1770460231922,-500.0,0.00015555,2]
[404689116,1770460231933,-304.10398826,0.00015555,2]
[404689117,1770460231944,-500.0,0.00015555,2]
[404689118,1770460231954,-500.0,0.00015555,2]
[404689119,1770460231964,-500.0,0.00015555,2]
[404689121,1770460231975,-500.0,0.00015555,2]
[404689123,1770460231985,-500.0,0.00015555,2]
[404689124,1770460231995,-500.0,0.00015555,2]
[404689125,1770460232005,-500.0,0.00015555,2]
[404689126,1770460232014,-500.0,0.00015555,2]
[404689127,1770460232024,-500.0,0.00015555,2]
[404689128,1770460232034,-500.0,0.00015555,2]
[404689129,1770460232043,-500.0,0.00015555,2]
[404689130,1770460232054,-500.0,0.00015555,2]
[404689131,1770460232064,-500.0,0.00015555,2]
[404689132,1770460232076,-500.0,0.00015555,2]
[404689133,1770460232096,-239.47644702,0.00015555,2]
[404689134,1770460232107,-563.18241587,0.00015555,2]
[404689135,1770460232119,-9487.33010238,0.00015556,2]
[404689136,1770460232134,-1491.53744342,0.00015556,2]
[404689137,1770460232152,-295.0908251,0.00015556,2]
[404689138,1770460232166,-1961.94354208,0.00015556,2]
[404689139,1770460232179,-2010.6407962,0.00015556,2]
[404689141,1770460237785,-11737.65924844,0.00015556,2]
[404689142,1770460237798,-706.550005,0.00015556,2]
[404689143,1770460237811,-796.55986639,0.00015556,2]
[404689144,1770460237824,-4932.1520001,0.00015556,2]
[404689145,1770460237836,-2824.62425539,0.00015556,2]
[404689146,1770460237853,-720.01455073,0.00015556,2]
[404689147,1770460237868,-24092.1664737,0.00015556,2]
[404689148,1770460237881,-269271.50747397,0.00015556,2]
[404689149,1770460237894,-915.68180285,0.00015556,2]
[404689150,1770460237906,-1051.74850456,0.00015556,2]
[404689151,1770460237919,-639.31888652,0.00015556,2]
[404689154,1770460239744,-2685.76393388,0.00015556,2]
[404689155,1770460239757,-2315.09651318,0.00015556,2]
[404689156,1770460239873,-871.29316464,0.00015556,2]
[404689157,1770460239885,-1825.86696782,0.00015556,2]
[404689158,1770460239898,-972.15998328,0.00015556,2]
[404689159,1770460239983,-1123.42602351,0.00015556,2]
[404689160,1770460239995,-1571538.76482502,0.00015556,2]
[404689164,1770460243279,-151.0,0.00015553,2]
[404689165,1770460243289,-3012.88365613,0.00015556,2]
[404689166,1770460243334,-7588.92766263,0.00015556,2]
[404689167,1770460244071,-20385.0,0.00015556,2]
[404689168,1770460244084,-709.17,0.00015556,2]
[404689169,1770460245705,-14092.63888743,0.00015556,2]
[404689170,1770460245718,-13259.25836996,0.00015556,2]
[404689171,1770460245762,-133540.50918574,0.00015556,2]
[404689172,1770460245774,-4296.75088854,0.00015556,2]
[404689173,1770460245921,-4826.16286284,0.00015556,2]
[404689174,1770460245976,-405.8537147,0.00015556,2]
[404689178,1770460289193,172.0,9.8e-07,2]
[404689179,1770460311104,189.25369516,0.000356,120]
[404689180,1770460319373,174.02925857,0.000356,120]
[404689182,1770460321113,173.85931812,0.000356,120]
[404689183,1770460325106,189.69162273,0.000356,120]
[404689184,1770460332714,432.04118186,0.000356,120]
[404689185,1770460333309,173.22078266,0.000356,120]
[404689186,1770460335967,251.79877526,0.000356,120]
[404689187,1770460358923,200.15077097,0.000356,120]
[404689188,1770460623315,189.25369516,0.000356,120]
[404689189,1770460633355,173.85931813,0.000356,120]
[404689190,1770460633385,174.02925856,0.000356,120]
[404689191,1770460637272,189.69162273,0.000356,120]
[404689192,1770460645506,173.22078266,0.000356,120]
[404689193,1770460646466,345.63294549,0.000356,120]
[404689194,1770460649882,201.43902021,0.000356,120]
[404689195,1770460673318,160.12061678,0.000356,120]
[404689196,1770460918812,1000.0,0.0003561,120]
[404689197,1770460946123,174.02925857,0.000356,120]
[404689198,1770460960822,276.50635639,0.000356,120]
[404689199,1770460963797,161.15121617,0.000356,120]
[404689200,1770460988495,160.12061678,0.000356,120]
[404689202,1770461116178,4999.99999999,0.00035616,120]
[404689203,1770461131964,500.0,0.00035616,120]
[404689204,1770461147904,2000.0,0.00035616,120]
[404689205,1770461159724,1000.0,0.00035616,120]
[404689206,1770461172507,1000.0,0.00035616,120]
[404689207,1770461180901,317.91000002,0.00035616,120]
[404689210,1770461274944,221.20508511,0.000356,120]
[404689211,1770461277997,161.15121616,0.000356,120]
[404689212,1770461302497,160.12061678,0.000356,120]
[404689218,1770461431781,-1056.37,0.00013817,2]
[404689219,1770461431791,-2022.42889972,0.000139,2]
[404689220,1770461431800,-3325.67071581,0.00013945,2]
[404689221,1770461431810,-265.0,0.00013945,2]
[404689222,1770461431820,-1200.0,0.00013954,2]
[404689223,1770461431830,-35614.54515958,0.00013955,2]
[404689224,1770461431842,-2279.85668093,0.00013955,2]
[404689225,1770461431853,-4452.66369481,0.00013955,2]
[404689226,1770461431864,-1889.17289129,0.00013955,2]
[404689231,1770461437825,-301.76454383,0.00013955,2]
[404689232,1770461437879,-8939.73702956,0.00013955,2]
[404689233,1770461437889,-3240.0,0.00014022,2]
[404689234,1770461437899,-195.0,0.00014072,2]
[404689235,1770461437908,-166.78,0.00014122,2]
[404689236,1770461437919,-195.0,0.0001414,2]
[404689237,1770461437929,-587.75,0.00014166,2]
[404689238,1770461437938,-250.0,0.00014194,2]
[404689239,1770461437948,-519.83,0.00014223,2]
[404689240,1770461437958,-150.0,0.00014367,2]
[404689241,1770461437968,-166.66,0.00014387,2]
[404689242,1770461437982,-1000.0,0.00014408,2]
[404689243,1770461437992,-1056.37,0.00014508,2]
[404689244,1770461438002,-166.66,0.0001469,2]
[404689245,1770461438018,-152.0,0.000147,3]
[404689246,1770461438029,-277.0,0.00014789,2]
[404689247,1770461438040,-1699.55,0.00014792,2]
[404689248,1770461438053,-455.57,0.0001489,2]
[404689249,1770461438063,-160.0,0.00014965,2]
[404689250,1770461438074,-166.66,0.00014993,2]
[404689251,1770461438084,-160.144,0.00015,2]
[404689252,1770461438095,-300.0,0.00015045,2]
[404689253,1770461438106,-150.0,0.00015045,2]
[404689254,1770461438118,-6176.31526713,0.00015046,2]
[404689255,1770461438129,-154.53457251,0.00015062,2]
[404689273,1770461438380,-151.0,0.00015069,2]
[404689274,1770461438389,-574.08388385,0.0001507,2]
[404689276,1770461438399,-500.0,0.0001507,2]
[404689278,1770461438410,-167.45602324,0.0001507,2]
[404689280,1770461438419,-500.0,0.0001507,2]
[404689281,1770461438428,-500.0,0.0001507,2]
[404689283,1770461438439,-468.7068047,0.0001507,2]
[404689295,1770461440032,-31.2931953,0.0001507,2]
[404689296,1770461440041,-315.7607467,0.0001507,2]
[404689297,1770461440139,-184.2392533,0.0001507,2]
[404689298,1770461440149,-500.0,0.0001507,2]
[404689299,1770461440159,-500.0,0.0001507,2]
[404689300,1770461440168,-500.0,0.0001507,2]
[404689301,1770461440178,-500.0,0.0001507,2]
[404689302,1770461440187,-500.0,0.0001507,2]
[404689303,1770461440196,-500.0,0.0001507,2]
[404689304,1770461440208,-500.0,0.0001507,2]
[404689305,1770461440218,-500.0,0.0001507,2]
[404689306,1770461440228,-500.0,0.0001507,2]
[404689307,1770461440239,-500.0,0.0001507,2]
[404689308,1770461440248,-500.0,0.0001507,2]
[404689309,1770461440259,-500.0,0.0001507,2]
[404689310,1770461440268,-500.0,0.0001507,2]
[404689311,1770461440277,-500.0,0.0001507,2]
[404689312,1770461440286,-500.0,0.0001507,2]
[404689313,1770461440296,-500.0,0.0001507,2]
[404689314,1770461440305,-500.0,0.0001507,2]
[404689315,1770461440315,-500.0,0.0001507,2]
[404689316,1770461440325,-500.0,0.0001507,2]
[404689317,1770461440335,-500.0,0.0001507,2]
[404689318,1770461440345,-500.0,0.0001507,2]
[404689319,1770461440354,-500.0,0.0001507,2]
[404689320,1770461440364,-500.0,0.0001507,2]
[404689321,1770461440373,-500.0,0.0001507,2]
[404689322,1770461440383,-500.0,0.0001507,2]
[404689323,1770461440392,-356.61130989,0.0001507,2]
[404689324,1770461440401,-500.0,0.0001507,2]
[404689325,1770461440410,-500.0,0.00015071,2]
[404689326,1770461440419,-193.1584119,0.00015071,2]
[404689328,1770461440429,-5423.8910489,0.00015071,2]
[404689329,1770461440438,-188.17333529,0.00015071,2]
[404689331,1770461440450,-3290.63729863,0.00015071,2]
[404689332,1770461440459,-876.94107787,0.00015071,2]
[404689333,1770461440469,-477.38783632,0.00015071,2]
[404689334,1770461440478,-353.51236064,0.00015071,2]
[404689335,1770461440487,-268.0796102,0.00015071,2]
[404689336,1770461440496,-222.71972066,0.00015071,2]
[404689337,1770461440505,-500.0,0.00015071,2]
[404689338,1770461440515,-210.66679551,0.00015071,2]
[404689339,1770461440524,-500.0,0.00015071,2]
[404689340,1770461440534,-500.0,0.00015071,2]
[404689341,1770461440543,-155.90380446,0.00015071,2]
[404689342,1770461440553,-666.0,0.00015071,2]
[404689343,1770461440563,-1657830.59834337,0.00015072,2]
[404689344,1770461440579,-317.7514194,0.00015072,2]
[404689395,1770461443483,-151.0,0.00015069,2]
[404689396,1770461443492,-690.95808177,0.00015072,2]
[404689397,1770461443502,-5162.0965493,0.00015072,2]
[404689398,1770461443534,-8432.85403011,0.00015072,2]
[404689399,1770461443546,-1908.95357177,0.00015072,2]
[404689410,1770461446111,-6790.00000001,0.00015072,2]
[404689411,1770461446125,-7750.0,0.00015072,2]
[404689412,1770461446136,-922.1580013,0.00015072,2]
[404689413,1770461446146,-12703.48655946,0.00015072,2]
[404689414,1770461446166,-85663.10741045,0.00015072,2]
[404689417,1770461589920,5353.0,0.00035,120]
[404689418,1770461590167,176.96406809,0.000356,120]
[404689419,1770461591302,161.15121617,0.000356,120]
[404689420,1770461620503,160.12061677,0.000356,120]
[404689421,1770461631303,1441.18,0.00011922,2]
[404689422,1770461903977,161.15121616,0.000356,120]
[404689423,1770461904266,176.96406809,0.000356,120]
[404689424,1770461932968,160.12061678,0.000356,120]
[404689426,1770462216109,161.15121617,0.000356,120]
[404689427,1770462217803,176.96406809,0.000356,120]
[404689428,1770462338827,-250.0,0.00013151,2]
[404689429,1770462338934,-135.0,0.00013151,2]
[404689430,1770462408126,-411.0,0.00013163,2]
[404689431,1770462408148,-255.0,0.00013228,2]
[404689432,1770462408169,-3353.79,0.00013641,2]
[404689433,1770462408189,-171.0,0.0001374,2]
[404689434,1770462408213,-1103.49870959,0.0001374,2]
[404689435,1770462530593,176.96406809,0.000356,120]
[404689436,1770462631971,-300.0,0.0001374,2]
[404689437,1770462631981,-1200.0,0.0001374,2]
[404689438,1770462631991,-2828.06566314,0.00013741,2]
[404689439,1770462632003,-1938.28433686,0.00013741,2]
[404689440,1770462632013,-1140.78551,0.00014054,2]
[404689441,1770462632023,-411.0,0.00014054,2]
[404689442,1770462632033,-200.0,0.00014146,2]
[404689443,1770462632042,-411.0,0.00014175,2]
[404689444,1770462632052,-500.0,0.00014202,2]
[404689445,1770462632061,-526.59373858,0.0001425,2]
[404689446,1770462632075,-1073.40626142,0.0001425,2]
[404689447,1770462632086,-500.0,0.00014266,2]
[404689448,1770462632097,-348.00314474,0.00014266,2]
[404689449,1770462632107,-4080.89,0.00014283,2]
[404689450,1770462632117,-411.0,0.00014359,2]
[404689451,1770462632127,-411.0,0.00014393,2]
[404689452,1770462632136,-411.0,0.00014416,2]
[404689453,1770462632146,-250.0,0.00014479,2]
[404689454,1770462632155,-411.0,0.0001448,2]
[404689455,1770462632165,-150.0,0.00014498,2]
[404689456,1770462632174,-500.0,0.00014499,2]
[404689457,1770462632187,-500.0,0.00014499,2]
[404689458,1770462632197,-500.0,0.00014499,2]
[404689459,1770462632207,-500.0,0.00014499,2]
[404689460,1770462632216,-500.0,0.00014499,2]
[404689461,1770462632225,-500.0,0.00014499,2]
[404689464,1770462632455,-151.0,0.00014499,2]
[404689465,1770462632475,-151.0,0.00014499,2]
[404689466,1770462632485,-151.0,0.00014499,2]
[404689467,1770462632499,-151.0,0.00014499,2]
[404689468,1770462632509,-151.0,0.00014499,2]
[404689469,1770462632519,-151.0,0.00014499,2]
[404689470,1770462632528,-151.0,0.00014499,2]
[404689471,1770462632537,-151.0,0.00014499,2]
[404689472,1770462632547,-151.0,0.00014499,2]
[404689473,1770462632557,-275.25443955,0.00014499,2]
[404689474,1770462632566,-170.938,0.00014507,2]
[404689475,1770462632575,-2139.462,0.00014507,2]
[404689476,1770462632584,-333.0,0.00014557,2]
[404689477,1770462632594,-411.0,0.00014562,2]
[404689478,1770462632603,-648.17349059,0.0001457,2]
[404689479,1770462632612,-500.0,0.0001457,2]
[404689480,1770462632621,-178.81113549,0.0001457,2]
[404689481,1770462632630,-500.0,0.0001457,2]
[404689482,1770462632641,-500.0,0.0001457,2]
[404689483,1770462632651,-295.07674716,0.0001457,2]
[404689484,1770462632661,-500.0,0.0001457,2]
[404689485,1770462632670,-500.0,0.0001457,2]
[404689486,1770462632679,-500.0,0.0001457,2]
[404689487,1770462632688,-500.0,0.0001457,2]
[404689488,1770462632698,-500.0,0.0001457,2]
[404689489,1770462632707,-333.14371564,0.0001457,2]
[404689490,1770462632716,-500.0,0.0001457,2]
[404689491,1770462632726,-500.0,0.0001457,2]
[404689492,1770462632736,-500.0,0.0001457,2]
[404689493,1770462632746,-410.20942792,0.0001457,2]
[404689494,1770462632756,-500.0,0.0001457,2]
[404689495,1770462632766,-192.67143229,0.0001457,2]
[404689496,1770462632776,-500.0,0.0001457,2]
[404689497,1770462632786,-500.0,0.0001457,2]
[404689498,1770462632795,-500.0,0.0001457,2]
[404689499,1770462632804,-204.56985635,0.0001457,2]
[404689500,1770462632814,-500.0,0.0001457,2]
[404689501,1770462632824,-158.72,0.00014687,2]
[404689502,1770462632833,-200.0,0.00014689,2]
[404689503,1770462632843,-385.0,0.00014708,2]
[404689504,1770462632853,-500.0,0.00014771,2]
[404689505,1770462632862,-150.0,0.00014771,2]
[404689506,1770462632875,-500.0,0.00014771,2]
[404689507,1770462632884,-150.41052194,0.00014771,2]
[404689508,1770462632893,-150.0,0.00014771,2]
[404689509,1770462632903,-150.0,0.00014771,2]
[404689510,1770462632912,-387.88,0.00014791,2]
[404689511,1770462632921,-235.36,0.00014791,2]
[404689512,1770462632931,-352.96267049,0.00014826,2]
[404689513,1770462632940,-500.0,0.00014826,2]
[404689514,1770462632949,-156.74412861,0.00014826,2]
[404689515,1770462632958,-150.0,0.00014826,2]
[404689516,1770462632968,-411.0,0.00014828,2]
[404689517,1770462632977,-500.0,0.00014844,2]
[404689518,1770462632986,-500.0,0.00014881,2]
[404689519,1770462632995,-179.62943936,0.00014881,2]
[404689520,1770462633005,-347.0,0.00014888,2]
[404689521,1770462633014,-307.0,0.0001491,2]
[404689522,1770462633024,-500.0,0.00014935,2]
[404689523,1770462633033,-411.0,0.00014942,2]
[404689524,1770462633043,-158.72,0.00014944,2]
[404689525,1770462633053,-411.0,0.0001499,2]
[404689526,1770462633066,-500.0,0.0001499,2]
[404689527,1770462633075,-349.0,0.00014995,2]
[404689528,1770462633084,-500.0,0.00015045,2]
[404689529,1770462633093,-500.0,0.00015047,2]
[404689530,1770462633103,-420.0,0.00015057,2]
[404689531,1770462633113,-1201.9893174,0.00015067,2]
[404689532,1770462633122,-500.0,0.00015071,2]
[404689533,1770462633131,-500.0,0.00015071,2]
[404689534,1770462633141,-500.0,0.00015071,2]
[404689535,1770462633150,-500.0,0.00015071,2]
[404689536,1770462633159,-500.0,0.00015071,2]
[404689537,1770462633169,-500.0,0.00015071,2]
[404689538,1770462633178,-500.0,0.00015071,2]
[404689539,1770462633187,-500.0,0.00015071,2]
[404689540,1770462633197,-500.0,0.00015071,2]
[404689541,1770462633207,-500.0,0.00015071,2]
[404689542,1770462633217,-500.0,0.00015071,2]
[404689543,1770462633226,-500.0,0.00015071,2]
[404689544,1770462633235,-500.0,0.00015071,2]
[404689545,1770462633244,-500.0,0.00015071,2]
[404689546,1770462633254,-500.0,0.00015071,2]
[404689547,1770462633266,-500.0,0.00015071,2]
[404689548,1770462633278,-500.0,0.00015071,2]
[404689549,1770462633287,-500.0,0.00015071,2]
[404689550,1770462633296,-500.0,0.00015071,2]
[404689551,1770462633307,-500.0,0.00015071,2]
[404689552,1770462633317,-500.0,0.00015071,2]
[404689553,1770462633326,-493.29329001,0.00015071,2]
[404689554,1770462633339,-6.70670999,0.00015071,2]
[404689555,1770462633349,-500.0,0.00015071,2]
[404689556,1770462633359,-500.0,0.00015071,2]
[404689557,1770462633368,-500.0,0.00015071,2]
[404689558,1770462633377,-500.0,0.00015071,2]
[404689559,1770462633387,-145.95454017,0.00015071,2]
[404689560,1770462633399,-354.04545983,0.00015071,2]
[404689561,1770462633409,-500.0,0.00015071,2]
[404689562,1770462633418,-500.0,0.00015071,2]
[404689563,1770462633428,-500.0,0.00015071,2]
[404689564,1770462633437,-208.08545101,0.00015071,2]
[404689565,1770462633449,-291.91454899,0.00015071,2]
[404689566,1770462633459,-500.0,0.00015071,2]
[404689567,1770462633468,-500.0,0.00015071,2]
[404689568,1770462633478,-500.0,0.00015071,2]
[404689569,1770462633487,-500.0,0.00015071,2]
[404689570,1770462633496,-500.0,0.00015071,2]
[404689571,1770462633506,-500.0,0.00015071,2]
[404689572,1770462633514,-500.0,0.00015071,2]
[404689573,1770462633523,-500.0,0.00015071,2]
[404689574,1770462633533,-300.97808633,0.00015071,2]
[404689575,1770462633542,-500.0,0.00015071,2]
[404689576,1770462633551,-500.0,0.00015071,2]
[404689577,1770462633560,-500.0,0.00015071,2]
[404689578,1770462633569,-500.0,0.00015071,2]
[404689579,1770462633578,-500.0,0.00015071,2]
[404689580,1770462633588,-500.0,0.00015071,2]
[404689581,1770462633597,-500.0,0.00015071,2]
[404689582,1770462633607,-600.0,0.00015071,2]
[404689583,1770462633616,-358.97441427,0.00015072,2]
[404689584,1770462633627,-2579.82837852,0.00015072,2]
[404689585,1770462633637,-1950.00810371,0.00015072,2]
[404689586,1770462633658,-413.403511,0.00015072,2]
[404689587,1770462633676,-2701.61761818,0.00015072,2]
[404689588,1770462633688,-2723.27497522,0.00015072,2]
[404689589,1770462633697,-3108.8875145,0.00015072,2]
[404689590,1770462633707,-8529.68464101,0.00015072,2]
[404689591,1770462633719,-1804.64356109,0.00015072,2]
[404689592,1770462633728,-218.0266776,0.00015072,2]
[404689593,1770462633737,-151.0,0.00015072,2]
[404689594,1770462633747,-500.0,0.000151,2]
[404689595,1770462633757,-1680.0,0.00015114,2]
[404689596,1770462633766,-195.0,0.00015114,2]
[404689597,1770462633776,-6.06822787,0.00015114,2]
[404689598,1770462633787,-899.76257559,0.00015114,2]
[404689599,1770462633797,-196.24403011,0.00015114,2]
[404689600,1770462633806,-500.0,0.00015118,2]
[404689601,1770462633815,-500.0,0.00015155,2]
[404689602,1770462633825,-519.49,0.00015172,2]
[404689603,1770462633835,-500.0,0.00015173,2]
[404689604,1770462633845,-500.0,0.00015173,2]
[404689605,1770462633854,-500.0,0.00015173,2]
[404689606,1770462633864,-500.0,0.00015173,2]
[404689607,1770462633874,-177.84292445,0.00015173,2]
[404689608,1770462633883,-500.0,0.00015173,2]
[404689609,1770462633893,-500.0,0.00015173,2]
[404689610,1770462633903,-164.24003681,0.00015173,2]
[404689611,1770462633912,-168.23539585,0.00015173,2]